fUST/lending_fUST_20260102
["ID","MTS","AMOUNT","RATE_DAILY","PERIOD"]
[400304625,1767331840316,-500.0,0.00012043,2]
[400304626,1767331840325,-500.0,0.00012043,2]
[400304627,1767331840334,-500.0,0.00012043,2]
[400304628,1767331840343,-500.0,0.00012043,2]
[400304630,1767331840352,-500.0,0.00012043,2]
[400304632,1767331840361,-500.0,0.00012043,2]
[400304633,1767331840370,-500.0,0.00012043,2]
[400304634,1767331840379,-500.0,0.00012043,2]
[400304635,1767331840389,-500.0,0.00012043,2]
[400304636,1767331840400,-500.0,0.00012043,2]
[400304638,1767331840410,-500.0,0.00012043,2]
[400304639,1767331840419,-500.0,0.00012043,2]
[400304640,1767331840427,-500.0,0.00012043,2]
[400304641,1767331840437,-500.0,0.00012043,2]
[400304642,1767331840446,-500.0,0.00012043,2]
[400304643,1767331840455,-500.0,0.00012043,2]
[400304644,1767331840466,-500.0,0.00012043,2]
[400304645,1767331840475,-500.0,0.00012043,2]
[400304646,1767331840484,-500.0,0.00012043,2]
[400304647,1767331840493,-500.0,0.00012043,2]
[400304648,1767331840502,-242.11,0.00012043,2]
[400304649,1767331840513,-500.0,0.00012043,2]
[400304650,1767331840523,-500.0,0.00012043,2]
[400304651,1767331840531,-500.0,0.00012104,2]
[400304652,1767331840540,-261.20102642,0.00012135,2]
[400304653,1767331840549,-177.0,0.00012155,2]
[400304654,1767331840558,-4477.0,0.00012157,2]
[400304655,1767331840567,-193.4349609,0.00012247,2]
[400304656,1767331840576,-193.4349611,0.00012247,2]
[400304657,1767331840585,-193.4349609,0.00012247,2]
[400304658,1767331840594,-193.4349611,0.00012247,2]
[400304659,1767331840603,-193.4349609,0.00012247,2]
[400304660,1767331840611,-193.4349611,0.00012247,2]
[400304662,1767331840620,-193.4349609,0.00012247,2]
[400304664,1767331840630,-193.4349611,0.00012247,2]
[400304666,1767331840639,-193.4349609,0.00012247,2]
[400304667,1767331840648,-192.4655153,0.00012247,2]
[400304669,1767331840657,-2158.245,0.00012255,2]
[400304671,1767331840666,-628.0,0.00012255,2]
[400304673,1767331840675,-1365.0,0.00012255,2]
[400304675,1767331840685,-416.0,0.00012255,2]
[400304677,1767331840694,-416.0,0.00012255,2]
[400304679,1767331840703,-396.857,0.00012255,2]
[400304682,1767331840712,-791.942,0.00012255,2]
[400304684,1767331840721,-322.12083617,0.00012264,2]
[400304686,1767331840730,-152.74,0.000123,2]
[400304688,1767331840739,-3818.94,0.00012329,2]
[400304689,1767331840748,-3182.45,0.00012329,2]
[400304691,1767331840757,-2398.4119403,0.00012361,2]
[400304694,1767331840766,-496.47127164,0.00012363,2]
[400304695,1767331840775,-500.0,0.00012378,2]
[400304697,1767331840784,-420.0,0.00012381,2]
[400304699,1767331840793,-420.0,0.00012381,2]
[400304702,1767331840802,-420.0,0.00012381,2]
[400304703,1767331840811,-420.0,0.00012381,2]
[400304705,1767331840821,-1680.0,0.00012382,2]
[400304707,1767331840830,-1680.0,0.00012396,2]
[400304709,1767331840839,-150.151,0.00012451,2]
[400304711,1767331840848,-150.739,0.00012451,2]
[400304714,1767331840856,-150.0,0.00012451,2]
[400304716,1767331840866,-260.729,0.00012451,2]
[400304719,1767331840875,-1662.01,0.00012554,2]
[400304720,1767331840884,-800.0,0.00012567,2]
[400304722,1767331840892,-800.0,0.00012604,2]
[400304725,1767331840901,-800.0,0.00012609,2]
[400304727,1767331840914,-800.0,0.00012635,2]
[400304729,1767331840923,-500.0,0.00012652,2]
[400304731,1767331840932,-600.0,0.000127,2]
[400304733,1767331840941,-800.0,0.00012707,2]
[400304735,1767331840950,-800.0,0.00012708,2]
[400304737,1767331840959,-261.27124007,0.0001271,2]
[400304739,1767331840969,-800.0,0.00012724,2]
[400304741,1767331840978,-800.0,0.00012737,2]
[400304743,1767331840987,-800.0,0.00012763,2]
[400304745,1767331840996,-800.0,0.00012767,2]
[400304747,1767331841005,-720.0,0.00012773,2]
[400304749,1767331841013,-800.0,0.00012786,2]
[400304751,1767331841023,-800.0,0.00012798,2]
[400304753,1767331841032,-1002.0,0.000128,4]
[400304755,1767331841041,-800.0,0.00012822,2]
[400304757,1767331841050,-729.19061802,0.00012833,2]
[400304759,1767331841059,-800.0,0.00012838,2]
[400304761,1767331841068,-800.0,0.00012853,2]
[400304762,1767331841077,-800.0,0.00012861,2]
[400304764,1767331841086,-210390.72417708,0.0001287,2]
[400304767,1767331841100,-9121.0578579,0.0001287,2]
[400304769,1767331841111,-8368.86317508,0.0001287,2]
[400304772,1767331841122,-3003.86757066,0.0001287,2]
[400304774,1767331841134,-100161.95561463,0.0001287,2]
[400304777,1767331841151,-307.8364998,0.0001287,2]
[400304802,1767331841371,-7848.70586151,0.0001287,2]
[400304804,1767331841381,-1086.86268639,0.0001287,2]
[400304867,1767331845588,-604.0,0.00012043,2]
[400304868,1767331845648,-29526.47171792,0.00012043,2]
[400304869,1767331845660,-1354.47656471,0.00012043,2]
[400304892,1767332279319,251.32,6.993e-05,2]
[400304904,1767333031588,-152.74,0.0001,2]
[400304907,1767333031599,-562.0,0.00010136,2]
[400304909,1767333031608,-150.0,0.00010136,2]
[400304910,1767333031617,-152.74,0.000107,2]
[400304912,1767333031625,-300.0,0.00010916,2]
[400304914,1767333031635,-300.0,0.00010916,2]
[400304917,1767333031645,-331.0,0.00010916,2]
[400304919,1767333031655,-300.0,0.00010916,2]
[400304921,1767333031664,-9400.9689957,0.00010917,2]
[400304923,1767333031674,-267850.49577446,0.00011065,2]
[400304927,1767333031705,-370.74347068,0.00011064,2]
[400304938,1767333031772,-129.25652932,0.00011064,2]
[400304940,1767333031781,-157.6101102,0.00011064,2]
[400304942,1767333031790,-536.77732584,0.00011064,2]
[400304944,1767333031799,-149.07603464,0.00011064,2]
[400304965,1767333037893,-362.62,0.0001053,2]
[400304966,1767333037902,-725.24,0.00011031,2]
[400304967,1767333037911,-343.52614409,0.00011064,2]
[400304968,1767333037920,-536.77732584,0.00011064,2]
[400304969,1767333037929,-536.77732584,0.00011064,2]
[400304970,1767333037938,-536.77732584,0.00011064,2]
[400304971,1767333037948,-536.77732584,0.00011064,2]
[400304972,1767333037957,-536.77732584,0.00011064,2]
[400304973,1767333037966,-536.77732584,0.00011064,2]
[400304974,1767333037975,-536.77732584,0.00011064,2]
[400304975,1767333037985,-536.77732584,0.00011064,2]
[400304976,1767333037994,-536.77732584,0.00011064,2]
[400304977,1767333038003,-536.77732584,0.00011064,2]
[400304978,1767333038012,-536.77732584,0.00011064,2]
[400304979,1767333038022,-536.77732584,0.00011064,2]
[400304980,1767333038032,-500.82274639,0.00011064,2]
[400304981,1767333038042,-500.0,0.00011064,2]
[400304982,1767333038051,-500.0,0.00011064,2]
[400304983,1767333038060,-500.0,0.00011064,2]
[400304984,1767333038070,-536.77732584,0.00011064,2]
[400304985,1767333038079,-500.0,0.00011064,2]
[400304986,1767333038089,-500.0,0.00011064,2]
[400304987,1767333038098,-500.0,0.00011064,2]
[400304988,1767333038108,-500.0,0.00011064,2]
[400304989,1767333038117,-500.0,0.00011064,2]
[400304990,1767333038127,-500.0,0.00011064,2]
[400304991,1767333038139,-500.0,0.00011064,2]
[400304992,1767333038148,-500.0,0.00011064,2]
[400304993,1767333038158,-500.0,0.00011064,2]
[400304994,1767333038169,-92.37595604,0.00011064,2]
[400304995,1767333038182,-407.62404396,0.00011064,2]
[400304996,1767333038192,-500.0,0.00011064,2]
[400304997,1767333038201,-500.0,0.00011064,2]
[400304998,1767333038214,-536.77732584,0.00011064,2]
[400304999,1767333038223,-500.0,0.00011064,2]
[400305000,1767333038233,-250.0,0.00011064,2]
[400305001,1767333038242,-536.77732584,0.00011064,2]
[400305002,1767333038252,-500.0,0.00011064,2]
[400305003,1767333038262,-500.0,0.00011064,2]
[400305004,1767333038272,-350.0,0.00011064,2]
[400305005,1767333038282,-500.0,0.00011064,2]
[400305006,1767333038291,-500.0,0.00011064,2]
[400305007,1767333038301,-500.0,0.00011064,2]
[400305008,1767333038311,-500.0,0.00011064,2]
[400305009,1767333038321,-500.0,0.00011064,2]
[400305010,1767333038330,-500.0,0.00011064,2]
[400305011,1767333038340,-500.0,0.00011064,2]
[400305012,1767333038350,-500.0,0.00011064,2]
[400305013,1767333038359,-536.77732584,0.00011064,2]
[400305014,1767333038369,-500.0,0.00011064,2]
[400305015,1767333038378,-500.0,0.00011064,2]
[400305016,1767333038388,-500.0,0.00011064,2]
[400305017,1767333038398,-650.0,0.00011064,2]
[400305018,1767333038408,-549129.411256,0.00011065,2]
[400305019,1767333038420,-1839.187663,0.00011065,2]
[400305020,1767333038431,-3921.72438981,0.00011065,2]
[400305021,1767333038442,-3664.0724537,0.00011065,2]
[400305022,1767333038453,-10005.0754213,0.00011065,2]
[400305023,1767333038468,-1143.75644152,0.00011065,2]
[400305057,1767333046087,-500.0,0.00011064,2]
[400305058,1767333046096,-13146.44521921,0.00011065,2]
[400305060,1767333275192,3045.41065533,9.76e-05,2]
[400305086,1767333594473,-200.0,0.0001107,10]
[400305087,1767333653404,169.81,0.00028767,120]
[400305088,1767333863133,203.18996758,0.00011,10]
[400305096,1767334083322,175.91,6.993e-05,2]
[400305145,1767334232451,-150.0,9.95e-05,2]
[400305146,1767334232461,-559.0,9.95e-05,2]
[400305147,1767334232471,-161.1,0.0001,2]
[400305148,1767334232480,-152.75,0.0001,2]
[400305149,1767334232489,-161.1,0.000102,2]
[400305150,1767334232499,-354.33,0.0001038,2]
[400305151,1767334232508,-161.1,0.000104,2]
[400305152,1767334232518,-161.1,0.000106,2]
[400305153,1767334232528,-150.0,0.00010788,2]
[400305154,1767334232538,-161.1,0.000108,2]
[400305155,1767334232548,-152.75,0.000108,2]
[400305156,1767334232557,-708.65,0.00010874,2]
[400305157,1767334232567,-300.0,0.00010923,2]
[400305158,1767334232576,-22064.72914675,0.00010924,2]
[400305159,1767334232586,-197.65854399,0.00010925,2]
[400305160,1767334232595,-194.82152511,0.00010961,2]
[400305161,1767334232604,-500.0,0.00010961,2]
[400305162,1767334232614,-500.0,0.00010961,2]
[400305163,1767334232623,-500.0,0.00010961,2]
[400305164,1767334232632,-500.0,0.00010961,2]
[400305165,1767334232642,-500.0,0.00010961,2]
[400305166,1767334232653,-500.0,0.00010961,2]
[400305167,1767334232663,-500.0,0.00010961,2]
[400305168,1767334232672,-500.0,0.00010961,2]
[400305169,1767334232682,-500.0,0.00010961,2]
[400305170,1767334232691,-500.0,0.00010961,2]
[400305171,1767334232701,-500.0,0.00010961,2]
[400305172,1767334232711,-500.0,0.00010961,2]
[400305173,1767334232725,-500.0,0.00010961,2]
[400305174,1767334232735,-500.0,0.00010961,2]
[400305175,1767334232744,-560.84673942,0.00010961,2]
[400305176,1767334232755,-500.0,0.00010961,2]
[400305177,1767334232765,-500.0,0.00010961,2]
[400305178,1767334232775,-500.0,0.00010961,2]
[400305179,1767334232784,-319.33900668,0.00010961,2]
[400305180,1767334232794,-500.0,0.00010961,2]
[400305181,1767334232804,-500.0,0.00010961,2]
[400305182,1767334232813,-500.0,0.00010961,2]
[400305183,1767334232823,-500.0,0.00010961,2]
[400305184,1767334232832,-500.0,0.00010961,2]
[400305185,1767334232842,-500.0,0.00010961,2]
[400305186,1767334232851,-500.0,0.00010961,2]
[400305187,1767334232860,-500.0,0.00010961,2]
[400305188,1767334232870,-500.0,0.00010961,2]
[400305189,1767334232880,-500.0,0.00010961,2]
[400305190,1767334232889,-37643.51627873,0.00010962,2]
[400305191,1767334233042,-975.72973871,0.00010962,2]
[400305192,1767334233062,-488.93656277,0.00010962,2]
[400305193,1767334233077,-929.26250814,0.00010962,2]
[400305194,1767334233090,-5801.40933,0.00010962,2]
[400305195,1767334233102,-17294.66422918,0.00010962,2]
[400305196,1767334233115,-1027.6,0.00010962,2]
[400305219,1767334237904,-500.0,0.00010959,2]
[400305221,1767334237914,-500.0,0.00010959,2]
[400305223,1767334237924,-500.0,0.00010959,2]
[400305225,1767334237933,-500.0,0.00010959,2]
[400305227,1767334237942,-500.0,0.00010959,2]
[400305229,1767334237952,-500.0,0.00010959,2]
[400305231,1767334237961,-45.41065533,0.00010959,2]
[400305447,1767334244698,-454.58934467,0.00010959,2]
[400305449,1767334244707,-500.0,0.00010959,2]
[400305451,1767334244719,-500.0,0.00010959,2]
[400305453,1767334244728,-463.31507108,0.00010959,2]
[400305455,1767334244737,-500.0,0.00010959,2]
[400305457,1767334244746,-500.0,0.00010959,2]
[400305459,1767334244756,-500.0,0.00010959,2]
[400305461,1767334244766,-500.0,0.00010959,2]
[400305462,1767334244775,-500.0,0.00010959,2]
[400305465,1767334244785,-500.0,0.00010959,2]
[400305467,1767334244796,-500.0,0.00010959,2]
[400305468,1767334244806,-500.0,0.00010959,2]
[400305470,1767334244815,-500.0,0.00010959,2]
[400305472,1767334244825,-280.30545114,0.00010959,2]
[400305475,1767334244835,-500.0,0.00010959,2]
[400305476,1767334244844,-500.0,0.00010959,2]
[400305478,1767334244853,-574.81360455,0.00010959,2]
[400305480,1767334244862,-500.0,0.00010959,2]
[400305482,1767334244871,-500.0,0.00010959,2]
[400305484,1767334244880,-500.0,0.00010959,2]
[400305486,1767334244889,-500.0,0.00010959,2]
[400305488,1767334244898,-500.0,0.00010959,2]
[400305490,1767334244907,-500.0,0.00010959,2]
[400305492,1767334244917,-500.0,0.00010959,2]
[400305494,1767334244926,-500.0,0.00010959,2]
[400305496,1767334244935,-500.0,0.00010959,2]
[400305498,1767334244944,-500.0,0.00010959,2]
[400305500,1767334244953,-500.0,0.00010959,2]
[400305502,1767334244962,-500.0,0.00010959,2]
[400305503,1767334244971,-500.0,0.00010959,2]
[400305505,1767334244981,-500.0,0.00010959,2]
[400305507,1767334244990,-500.0,0.00010959,2]
[400305508,1767334244999,-500.0,0.00010959,2]
[400305509,1767334245009,-500.0,0.00010959,2]
[400305510,1767334245018,-500.0,0.00010959,2]
[400305511,1767334245028,-500.0,0.00010959,2]
[400305512,1767334245037,-500.0,0.00010959,2]
[400305513,1767334245047,-500.0,0.00010959,2]
[400305514,1767334245056,-500.0,0.00010959,2]
[400305516,1767334245065,-500.0,0.00010959,2]
[400305518,1767334245075,-500.0,0.00010959,2]
[400305519,1767334245084,-500.0,0.00010959,2]
[400305520,1767334245094,-500.0,0.00010959,2]
[400305521,1767334245103,-500.0,0.00010959,2]
[400305522,1767334245112,-500.0,0.00010959,2]
[400305523,1767334245123,-500.0,0.00010959,2]
[400305524,1767334245132,-412.32966542,0.00010959,2]
[400305525,1767334245142,-500.0,0.00010959,2]
[400305526,1767334245152,-500.0,0.00010959,2]
[400305527,1767334245161,-500.0,0.00010959,2]
[400305528,1767334245171,-232.84411141,0.00010959,2]
[400305542,1767334850743,3186.0,0.00028767,120]
[400305546,1767335230309,209.51938186,0.00023615,120]
[400305555,1767335397685,-150.0,0.00012399,30]
[400305556,1767335419033,-200.0,0.00012989,30]
[400305580,1767335432027,-291.51992709,0.0001,2]
[400305581,1767335432037,-152.75,0.0001,2]
[400305582,1767335432047,-150.0,0.00010088,2]
[400305583,1767335432056,-58.81544283,0.00010763,2]
[400305671,1767335452825,-150.0,0.00010044,2]
[400305672,1767335452835,-150.0,0.00010625,2]
[400305674,1767335486013,-150.0,0.00012634,30]
[400305675,1767335534477,-150.0,0.00013005,30]
[400305676,1767335579555,-150.0,0.00013624,30]
[400305677,1767335581196,-135.16,0.00013624,30]
[400305678,1767335685579,846.81003242,9.76e-05,2]
[400305679,1767335740914,-150.0,0.00012396,30]
[400305680,1767335823247,-150.0,0.00012378,30]
[400305681,1767335908590,-150.0,0.00012386,30]
[400305727,1767336638365,-363.07242905,0.0001,2]
[400305728,1767336638377,-151.04,0.0001,2]
[400305729,1767336638387,-150.0,0.0001005,2]
[400305730,1767336638396,-151.04,0.000104,2]
[400305731,1767336638406,-321.42,0.00010441,2]
[400305732,1767336638415,-170.953,0.00010546,2]
[400305733,1767336638425,-150.0,0.00010651,2]
[400305734,1767336638434,-300.0,0.00010759,2]
[400305735,1767336638444,-300.0,0.00010759,2]
[400305736,1767336638453,-352.0,0.00010759,2]
[400305737,1767336638462,-1225.6490493,0.0001076,2]
[400305738,1767336638474,-413.9800501,0.0001076,2]
[400305739,1767336638485,-646.69240815,0.0001076,2]
[400305740,1767336638495,-324.67548291,0.0001076,2]
[400305741,1767336638504,-243.32399349,0.0001076,2]
[400305742,1767336638516,-42.76640702,0.0001076,2]
[400305743,1767336638526,-495.59559298,0.0001076,2]
[400305774,1767336646818,-4.40440702,0.0001076,2]
[400305775,1767336646828,-500.0,0.0001076,2]
[400305776,1767336646837,-500.0,0.0001076,2]
[400305777,1767336646847,-500.0,0.0001076,2]
[400305778,1767336646855,-299.6129247,0.0001076,2]
[400305779,1767336646867,-200.3870753,0.0001076,2]
[400305780,1767336646876,-500.0,0.0001076,2]
[400305781,1767336646885,-93.8166189,0.0001076,2]
[400305783,1767337282019,5000.0,9.76e-05,2]
[400305816,1767337832654,-150.0,9.925e-05,2]
[400305817,1767337832664,-151.04,0.0001,2]
[400305818,1767337832673,-300.0,0.00010096,2]
[400305819,1767337832688,-3920.20249562,0.00010097,2]
[400305820,1767337832698,-300.0,0.00010097,2]
[400305821,1767337832708,-165.465629,0.00010097,2]
[400305822,1767337832719,-134.534371,0.00010097,2]
[400305823,1767337832728,-223.49609967,0.00010097,2]
[400305824,1767337832745,-76.50390033,0.00010097,2]
[400305825,1767337832754,-300.0,0.00010097,2]
[400305826,1767337832764,-158.13990691,0.00010097,2]
[400305827,1767337832830,-141.86009309,0.00010097,2]
[400305828,1767337832839,-300.0,0.00010097,2]
[400305829,1767337832848,-300.0,0.00010097,2]
[400305830,1767337832858,-300.0,0.00010097,2]
[400305831,1767337832867,-300.0,0.00010097,2]
[400305832,1767337832876,-300.0,0.00010097,2]
[400305833,1767337832886,-300.0,0.00010097,2]
[400305834,1767337832895,-300.0,0.00010097,2]
[400305835,1767337832904,-300.0,0.00010097,2]
[400305836,1767337832913,-58.13990691,0.00010097,2]
[400305837,1767337832924,-241.86009309,0.00010097,2]
[400305838,1767337832944,-300.0,0.00010097,2]
[400305839,1767337832954,-600.0,0.00010298,2]
[400305840,1767337832963,-151.04,0.000104,2]
[400305841,1767337832973,-170.953,0.00010651,2]
[400305842,1767337832983,-153.33454002,0.00010651,2]
[400305843,1767337832993,-500.0,0.00010653,2]
[400305844,1767337833002,-500.0,0.00010653,2]
[400305845,1767337833011,-132.81236689,0.00010653,2]
[400305846,1767337833023,-367.18763311,0.00010653,2]
[400305847,1767337833033,-350.57021106,0.00010653,2]
[400305848,1767337833044,-149.42978894,0.00010653,2]
[400305849,1767337833054,-500.0,0.00010653,2]
[400305850,1767337833063,-500.0,0.00010653,2]
[400305851,1767337833072,-500.0,0.00010653,2]
[400305852,1767337833082,-500.0,0.00010653,2]
[400305853,1767337833091,-500.0,0.00010653,2]
[400305854,1767337833101,-486.2493358,0.00010653,2]
[400305855,1767337833110,-500.0,0.00010653,2]
[400305856,1767337833119,-500.0,0.00010653,2]
[400305857,1767337833128,-500.0,0.00010653,2]
[400305858,1767337833138,-500.0,0.00010653,2]
[400305859,1767337833280,-500.0,0.00010653,2]
[400305860,1767337833290,-500.0,0.00010653,2]
[400305861,1767337833299,-500.0,0.00010653,2]
[400305862,1767337833309,-500.0,0.00010653,2]
[400305863,1767337833318,-500.0,0.00010653,2]
[400305864,1767337833328,-500.0,0.00010653,2]
[400305865,1767337833337,-560.90435006,0.00010653,2]
[400305866,1767337833346,-500.0,0.00010653,2]
[400305867,1767337833355,-500.0,0.00010653,2]
[400305868,1767337833364,-300.0,0.00010653,2]
[400305869,1767337833374,-500.0,0.00010653,2]
[400305870,1767337833384,-341.53452737,0.00010658,2]
[400305871,1767337833393,-500.0,0.00010658,2]
[400305872,1767337833403,-500.0,0.00010658,2]
[400305873,1767337833413,-500.0,0.00010658,2]
[400305874,1767337833423,-500.0,0.00010658,2]
[400305875,1767337833432,-500.0,0.00010658,2]
[400305876,1767337833442,-500.0,0.00010658,2]
[400305877,1767337833451,-500.0,0.00010658,2]
[400305878,1767337833460,-500.0,0.00010658,2]
[400305879,1767337833470,-507.82361437,0.00010658,2]
[400305880,1767337833480,-500.0,0.00010658,2]
[400305881,1767337833489,-500.0,0.00010658,2]
[400305882,1767337833499,-105.58094405,0.00010658,2]
[400305893,1767337838428,-500.0,0.00010653,2]
[400305895,1767337838443,-500.0,0.00010653,2]
[400305897,1767337838452,-500.0,0.00010653,2]
[400305899,1767337838463,-500.0,0.00010653,2]
[400305901,1767337838473,-172.22358985,0.00010653,2]
[400305902,1767337838485,-327.77641015,0.00010653,2]
[400305903,1767337838495,-500.0,0.00010653,2]
[400305904,1767337838505,-377.46800849,0.00010653,2]
[400305905,1767337838516,-122.5319915,0.00010653,2]
[400305906,1767337838526,-500.0,0.00010653,2]
[400305907,1767337838536,-67.46031935,0.00010658,2]
[400305908,1767337838604,-326.9587366,0.00010658,2]
[400305909,1767337838615,-418.24316611,0.00010658,2]
[400305910,1767337838636,-81.75683389,0.00010658,2]
[400305911,1767337838646,-500.0,0.00010658,2]
[400305912,1767337838655,-500.0,0.00010658,2]
[400305913,1767337838665,-500.0,0.00010658,2]
[400305914,1767337838675,-500.0,0.00010658,2]
[400305915,1767337838684,-500.0,0.00010658,2]
[400305916,1767337838694,-500.0,0.00010658,2]
[400305917,1767337838703,-500.0,0.00010658,2]
[400305918,1767337838713,-500.0,0.00010658,2]
[400305919,1767337838723,-500.0,0.00010658,2]
[400305920,1767337838732,-500.0,0.00010658,2]
[400305921,1767337838741,-500.0,0.00010658,2]
[400305922,1767337838751,-500.0,0.00010658,2]
[400305923,1767337838760,-500.0,0.00010658,2]
[400305924,1767337838769,-500.0,0.00010658,2]
[400305925,1767337838779,-500.0,0.00010658,2]
[400305926,1767337838788,-500.0,0.00010658,2]
[400305927,1767337838797,-500.0,0.00010658,2]
[400305928,1767337838807,-500.0,0.00010658,2]
[400305929,1767337838816,-445.65365035,0.00010658,2]
[400305930,1767337838828,-54.34634965,0.00010658,2]
[400305931,1767337838837,-200.0,0.00010658,2]
[400305932,1767337838847,-6915.8864483,0.00010659,2]
[400305933,1767337838858,-479.50755848,0.00010659,2]
[400305943,1767337840689,-10854.75329297,0.00010659,2]
[400305944,1767337840749,-7338.35907695,0.00010659,2]
[400305945,1767337840760,-42552.41538938,0.00010659,2]
[400305946,1767337840808,-421.34041922,0.00010659,2]
[400305949,1767337845567,-19294.01464235,0.00010659,2]
[400305951,1767337845579,-11874.6777346,0.00010659,2]
[400305971,1767337846789,-879.9514622,0.00010659,2]
[400305972,1767337846800,-510.61843461,0.00010659,2]
[400305973,1767337846811,-618.914,0.00010659,2]
[400305974,1767337846823,-5465.64002953,0.00010659,2]
[400305975,1767337846834,-468.22349426,0.00010659,2]
[400305977,1767337846844,-60509.63532359,0.00010659,2]
[400306027,1767339032602,-151.04,0.0001,2]
[400306029,1767339032613,-150.0,0.00010087,2]
[400306030,1767339032623,-170.954,0.00010348,2]
[400306032,1767339032633,-151.04,0.000105,2]
[400306033,1767339032642,-300.0,0.00010552,2]
[400306034,1767339032652,-151.0,0.00010553,2]
[400306035,1767339032661,-266.4777968,0.00010553,2]
[400306036,1767339032670,-461.67526834,0.00010553,2]
[400306037,1767339032679,-151.0,0.00010553,2]
[400306038,1767339032689,-151.0,0.00010553,2]
[400306039,1767339032698,-151.0,0.00010553,2]
[400306040,1767339032707,-151.0,0.00010553,2]
[400306041,1767339032717,-151.0,0.00010553,2]
[400306042,1767339032848,-2230.315306,0.00010553,2]
[400306043,1767339032859,-500.0,0.00010558,2]
[400306044,1767339032868,-500.0,0.00010558,2]
[400306045,1767339032877,-500.0,0.00010558,2]
[400306046,1767339032886,-500.0,0.00010558,2]
[400306047,1767339032895,-204.03488445,0.00010558,2]
[400306048,1767339032905,-500.0,0.00010558,2]
[400306049,1767339032916,-500.0,0.00010558,2]
[400306050,1767339032925,-500.0,0.00010558,2]
[400306051,1767339032934,-500.0,0.00010558,2]
[400306052,1767339032944,-500.0,0.00010558,2]
[400306053,1767339032954,-500.0,0.00010558,2]
[400306054,1767339032964,-500.0,0.00010558,2]
[400306055,1767339032973,-500.0,0.00010558,2]
[400306056,1767339032983,-82.81184339,0.00010558,2]
[400306057,1767339032994,-303.41490542,0.00010558,2]
[400306065,1767339038906,-113.77325119,0.00010558,2]
[400306066,1767339038916,-500.0,0.00010558,2]
[400306067,1767339038926,-500.0,0.00010558,2]
[400306068,1767339038935,-500.0,0.00010558,2]
[400306069,1767339038944,-266.85338217,0.00010558,2]
[400306070,1767339038959,-233.14661783,0.00010558,2]
[400306071,1767339038968,-500.0,0.00010558,2]
[400306072,1767339038978,-500.0,0.00010558,2]
[400306073,1767339038987,-500.0,0.00010558,2]
[400306074,1767339038996,-500.0,0.00010558,2]
[400306075,1767339039005,-500.0,0.00010558,2]
[400306076,1767339039014,-500.0,0.00010558,2]
[400306077,1767339039023,-500.0,0.00010558,2]
[400306078,1767339039032,-500.0,0.00010558,2]
[400306079,1767339039042,-453.50489749,0.00010558,2]
[400306080,1767339039051,-500.0,0.00010558,2]
[400306081,1767339039061,-500.0,0.00010558,2]
[400306082,1767339039070,-500.0,0.00010558,2]
[400306083,1767339039079,-239.07416916,0.00010558,2]
[400306084,1767339039089,-188805.77882512,0.00010559,2]
[400306085,1767339039100,-97521.30333452,0.00010559,2]
[400306127,1767339047255,-500.0,0.00010558,2]
[400306129,1767339047265,-500.0,0.00010558,2]
[400306132,1767339047277,-500.0,0.00010558,2]